[Event "FIDE Grand Swiss 2023"]
[Site "Villa Marina, Douglas, Isle of Man"]
[Date "2023.11.04"]
[Round "10.15"]
[White "Yakubboev, Nodirbek"]
[Black "Bacrot, Etienne"]
[Result "1/2-1/2"]
[WhiteElo "2616"]
[BlackElo "2669"]
[EventDate "2023.10.25"]
[ECO "D20"]
[PlyCount "157"]
[BlackClock "00:11:17"]
[BlackFideId "605506"]
[TimeControl "40/100 + 20/50 + 15 + 30s/move"]
[WhiteClock "00:07:05"]
[WhiteFideId "14203987"]

1.d4 {[%emt 00:01:08]} 1...d5 {[%clk 01:39:55]} 2.c4 {[%clk 01:41:15][%emt
00:00:11]} 2...dxc4 {[%clk 01:40:19][%emt 00:00:06]} 3.e4 {[%clk 01:40:43][%emt
00:01:02]} 3...c5 {[%clk 01:39:29][%emt 00:01:20]} 4.d5 {[%clk 01:35:20][%emt
00:05:54]} 4...Nf6 {[%clk 01:39:41][%emt 00:00:17]} 5.Nc3 {[%clk 01:34:39][%emt
00:01:12]} 5...b5 {[%clk 01:40:03][%emt 00:00:07]} 6.e5 {[%clk 01:25:34][%emt
00:09:35]} 6...b4 {[%clk 01:40:08][%emt 00:00:25]} 7.exf6 {[%clk 01:21:19][%emt
00:04:46]} 7...bxc3 {[%clk 01:40:31][%emt 00:00:07]} 8.bxc3 {[%clk
01:20:09][%emt 00:01:40]} 8...exf6 {[%clk 01:40:55][%emt 00:00:06]} 9.Bxc4 
{[%clk 01:17:30][%emt 00:03:09]} 9...Bd6 {[%clk 01:41:20][%emt 00:00:05]} 
10.Ne2 {[%clk 01:10:37][%emt 00:07:22]} 10...O-O {[%clk 01:35:20][%emt
00:06:30]} 11.Bd3 {[%clk 01:03:02][%emt 00:08:05]} 11...Nd7 {[%clk
01:17:09][%emt 00:18:42]} 12.Qc2 {[%clk 00:57:00][%emt 00:06:32]} 12...g6 
{[%clk 00:58:33][%emt 00:19:06]} 13.c4 {[%clk 00:55:01][%emt 00:02:29]} 
13...Ne5 {[%clk 00:56:40][%emt 00:02:22]} 14.O-O {[%clk 00:53:53][%emt
00:01:38]} 14...Re8 {[%clk 00:48:51][%emt 00:08:19]} 15.Ng3 {[%clk
00:50:11][%emt 00:04:12]} 15...f5 {[%clk 00:46:38][%emt 00:02:42]} 16.Be2 
{[%clk 00:31:50][%emt 00:18:52]} 16...Rb8 {[%clk 00:42:48][%emt 00:04:21]} 
17.f4 {[%clk 00:24:31][%emt 00:07:49]} 17...Nd7 {[%clk 00:43:13][%emt 00:00:04]} 
18.Bd3 {[%clk 00:20:20][%emt 00:04:41]} 18...Qh4 {[%clk 00:36:12][%emt
00:07:31]} 19.Ne2 {[%clk 00:18:04][%emt 00:02:46]} 19...Nf6 {[%clk
00:34:43][%emt 00:01:59]} 20.h3 {[%clk 00:18:11][%emt 00:00:23]} 20...Rb7 
{[%clk 00:25:35][%emt 00:09:38]} 21.Bd2 {[%clk 00:05:00][%emt 00:13:40]} 
21...Rbe7 {[%clk 00:24:14][%emt 00:01:52]} 22.Rae1 {[%clk 00:05:11][%emt
00:00:19]} 22...Nh5 {[%clk 00:16:59][%emt 00:07:45]} 23.Qc1 {[%clk
00:05:35][%emt 00:00:07]} 23...g5 {[%clk 00:15:38][%emt 00:01:50]} 24.fxg5 
{[%clk 00:05:04][%emt 00:01:01]} 24...Ng3 {[%clk 00:14:58][%emt 00:01:11]} 
25.Rf2 {[%clk 00:01:41][%emt 00:03:53]} 25...Nxe2+ {[%clk 00:07:18][%emt
00:08:10]} 26.Rexe2 {[%clk 00:02:05][%emt 00:00:05]} 26...Bg3 {[%clk
00:07:07][%emt 00:00:42]} 27.Kf1 {[%clk 00:02:15][%emt 00:00:20]} 27...f4 
{[%clk 00:03:45][%emt 00:03:51]} 28.d6 {[%clk 00:00:55][%emt 00:01:50]} 
28...Rxe2 {[%clk 00:01:12][%emt 00:03:03]} 29.Rxe2 {[%clk 00:01:20][%emt
00:00:05]} 29...Rxe2 {[%clk 00:01:39][%emt 00:00:03]} 30.Bxe2 {[%clk
00:01:27][%emt 00:00:21]} 30...Bxh3 {[%clk 00:01:46][%emt 00:00:26]} 31.Bf3 
{[%clk 00:01:13][%emt 00:00:44]} 31...Be6 {[%clk 00:00:50][%emt 00:01:26]} 
32.Ke2 {[%clk 00:00:51][%emt 00:00:51]} 32...Qxg5 {[%clk 00:01:16][%emt
00:00:04]} 33.Qc3 {[%clk 00:01:11][%emt 00:00:09]} 33...Qf5 {[%clk
00:00:35][%emt 00:01:12]} 34.Bc1 {[%clk 00:01:09][%emt 00:00:32]} 34...f6 
{[%clk 00:00:37][%emt 00:00:28]} 35.Bb2 {[%clk 00:00:59][%emt 00:00:40]} 
35...Kf7 {[%clk 00:00:39][%emt 00:00:29]} 36.Qb3 {[%clk 00:00:44][%emt
00:00:45]} 36...Bd7 {[%clk 00:00:35][%emt 00:00:34]} 37.Bd5+ {[%clk
00:00:40][%emt 00:00:33]} 37...Kg6 {[%clk 00:01:01][%emt 00:00:04]} 38.Qd3 
{[%clk 00:00:35][%emt 00:00:35]} 38...Qxd3+ {[%clk 00:01:02][%emt 00:00:30]} 
39.Kxd3 {[%clk 00:01:03]} 39...f3 {[%clk 00:01:25][%emt 00:00:07]} 40.Bxf3 
{[%clk 00:00:47][%emt 00:00:46]} 40...Bxd6 {[%clk 00:01:42][%emt 00:00:14]} 
41.Bc1 {[%clk 00:00:48][%emt 00:00:29]} 41...h5 {[%clk 00:01:32][%emt 00:00:40]} 
42.Be3 {[%clk 00:47:35][%emt 00:03:43]} 42...f5 {[%clk 00:49:28][%emt 00:02:34]} 
43.Bf2 {[%clk 00:47:11][%emt 00:00:54]} 43...Kg5 {[%clk 00:47:58][%emt
00:01:59]} 44.Be3+ {[%clk 00:46:55][%emt 00:00:47]} 44...f4 {[%clk
00:41:34][%emt 00:06:53]} 45.Bf2 {[%clk 00:47:20][%emt 00:00:06]} 45...Bf5+ 
{[%clk 00:41:55][%emt 00:00:09]} 46.Kd2 {[%clk 00:46:38][%emt 00:01:12]} 
46...Bb1 {[%clk 00:40:42][%emt 00:01:42]} 47.a3 {[%clk 00:47:02][%emt 00:00:07]} 
47...Bf5 {[%clk 00:40:41][%emt 00:00:31]} 48.Bg1 {[%clk 00:46:18][%emt
00:01:14]} 48...Bg4 {[%clk 00:39:42][%emt 00:01:29]} 49.Ke2 {[%clk
00:45:36][%emt 00:01:12]} 49...Kf5 {[%clk 00:39:48][%emt 00:00:24]} 50.Bf2 
{[%clk 00:45:45][%emt 00:00:21]} 50...Ke5 {[%clk 00:39:53][%emt 00:00:25]} 
51.a4 {[%clk 00:38:21][%emt 00:07:54]} 51...Be7 {[%clk 00:36:09][%emt 00:04:13]} 
52.Kd2 {[%clk 00:35:34][%emt 00:03:18]} 52...Kd6 {[%clk 00:30:43][%emt
00:05:56]} 53.Be1 {[%clk 00:32:36][%emt 00:03:29]} 53...Bf6 {[%clk
00:12:31][%emt 00:18:42]} 54.Ke2 {[%clk 00:30:57][%emt 00:02:09]} 54...Be5 
{[%clk 00:11:58][%emt 00:01:02]} 55.Bd2 {[%clk 00:14:01][%emt 00:17:26]} 
55...Bd7 {[%clk 00:12:16][%emt 00:00:11]} 56.Bxh5 {[%clk 00:12:34][%emt
00:01:58]} 56...Bxa4 {[%clk 00:12:37][%emt 00:00:09]} 57.Kd3 {[%clk
00:12:41][%emt 00:00:23]} 57...Ke6 {[%clk 00:07:13][%emt 00:05:53]} 58.Ba5 
{[%clk 00:09:24][%emt 00:03:48]} 58...Bb3 {[%clk 00:06:35][%emt 00:01:05]} 
59.Bf3 {[%clk 00:08:25][%emt 00:01:32]} 59...Kd6 {[%clk 00:04:45][%emt
00:02:20]} 60.Bd5 {[%clk 00:07:10][%emt 00:01:45]} 60...Ba4 {[%clk
00:04:40][%emt 00:00:35]} 61.Bf3 {[%clk 00:06:55][%emt 00:00:45]} 61...Be8 
{[%clk 00:04:26][%emt 00:00:44]} 62.Kc2 {[%clk 00:06:07][%emt 00:01:19]} 
62...Bg6+ {[%clk 00:03:14][%emt 00:01:41]} 63.Kb3 {[%clk 00:06:26][%emt
00:00:11]} 63...Bf7 {[%clk 00:03:20][%emt 00:00:23]} 64.Bg4 {[%clk
00:03:51][%emt 00:03:07]} 64...Ba1 {[%clk 00:01:08][%emt 00:02:41]} 65.Bf3 
{[%clk 00:02:18][%emt 00:02:03]} 65...Ke5 {[%clk 00:00:51][%emt 00:00:47]} 
66.Ka2 {[%clk 00:02:43][%emt 00:00:05]} 66...Bd4 {[%clk 00:01:11][%emt
00:00:09]} 67.Kb3 {[%clk 00:03:08][%emt 00:00:07]} 67...Bf2 {[%clk
00:00:46][%emt 00:00:53]} 68.Bc3+ {[%clk 00:03:27][%emt 00:00:11]} 68...Kf5 
{[%clk 00:01:03][%emt 00:00:10]} 69.Ba5 {[%clk 00:03:24] [%emt 00:00:37]} 
69...Be8 {[%clk 00:00:45][%emt 00:00:48]} 70.Ka3 {[%clk 00:00:51][%emt
00:03:04]} 70...Bf7 {[%clk 00:00:43][%emt 00:00:30]} 71.Kb3 {[%clk
00:03:24][%emt 00:00:37]} 71...Be6 {[%clk 00:01:00][%emt 00:00:13]} 72.Bc7 
{[%clk 00:08:23][%emt 00:08:22]} 72...Bd7 {[%clk 00:16:20][%emt 00:00:10]} 
73.Ba5 {[%clk 00:08:30][%emt 00:00:24]} 73...Bd4 {[%clk 00:16:27][%emt
00:00:22]} 74.Be1 {[%clk 00:07:43][%emt 00:01:18]} 74...Be5 {[%clk
00:16:42][%emt 00:00:15]} 75.Ba5 {[%clk 00:08:00][%emt 00:00:13]} 75...Bd6 
{[%clk 00:16:47][%emt 00:00:24]} 76.Ka3 {[%clk 00:07:55][%emt 00:00:36]} 
76...Be8 {[%clk 00:14:05][%emt 00:03:10]} 77.Kb3 {[%clk 00:07:36][%emt
00:00:52]} 77...Ke6 {[%clk 00:14:27][%emt 00:00:07]} 78.Be1 {[%clk
00:07:10][%emt 00:00:55]} 78...Kd7 {[%clk 00:13:50][%emt 00:01:07]} 79.Bd5 
{[%clk 00:07:05][%emt 00:00:36]} 1/2-1/2

[Event "FIDE Grand Swiss 2023"]
[Site "Villa Marina, Douglas, Isle of Man"]
[Date "2023.11.04"]
[Round "10.16"]
[White "Bartel, Mateusz"]
[Black "Firouzja, Alireza"]
[Result "1/2-1/2"]
[WhiteElo "2651"]
[BlackElo "2777"]
[EventDate "2023.10.25"]
[ECO "B90"]
[PlyCount "124"]
[BlackClock "00:04:17"]
[BlackFideId "12573981"]
[TimeControl "40/100 + 20/50 + 15 + 30s/move"]
[WhiteClock "00:38:13"]
[WhiteFideId "1112635"]

1.e4 {[%clk 01:40:56][%emt 00:00:02]} 1...c5 {[%clk 01:40:57][%emt 00:00:04]} 
2.Nf3 {[%clk 01:41:20][%emt 00:00:06]} 2...d6 {[%clk 01:41:23][%emt 00:00:04]} 
3.d4 {[%clk 01:41:44][%emt 00:00:06]} 3...cxd4 {[%clk 01:41:47][%emt 00:00:07]} 
4.Nxd4 {[%clk 01:42:09][%emt 00:00:05]} 4...Nf6 {[%clk 01:42:11][%emt 00:00:06]} 
5.Nc3 {[%clk 01:42:34][%emt 00:00:04]} 5...a6 {[%clk 01:42:37][%emt 00:00:05]} 
6.Qd3 {[%clk 01:42:59][%emt 00:00:04]} 6...Nbd7 {[%clk 01:42:01][%emt 00:01:07]} 
7.Be2 {[%clk 01:42:49][%emt 00:00:39]} 7...Nc5 {[%clk 01:41:32][%emt 00:01:00]} 
8.Qe3 {[%clk 01:43:10][%emt 00:00:08]} 8...e5 {[%clk 01:41:20][%emt 00:00:42]} 
9.Nb3 {[%clk 01:43:34][%emt 00:00:06]} 9...Ne6 {[%clk 01:41:26][%emt 00:00:24]} 
10.Bd2 {[%clk 01:43:57][%emt 00:00:07]} 10...Be7 {[%clk 01:40:08][%emt
00:01:48]} 11.O-O-O {[%clk 01:40:30][%emt 00:03:57]} 11...b5 {[%clk
01:37:07][%emt 00:03:31]} 12.g3 {[%clk 01:23:39][%emt 00:17:21]} 12...Bb7 
{[%clk 01:15:32][%emt 00:22:06]} 13.f4 {[%clk 01:22:37][%emt 00:01:31]} 
13...Rc8 {[%clk 01:01:22][%emt 00:14:40]} 14.Nd5 {[%clk 01:13:06][%emt
00:10:01]} 14...Bxd5 {[%clk 00:53:31][%emt 00:08:21]} 15.exd5 {[%clk
01:12:39][%emt 00:00:56]} 15...Nxd5 {[%clk 00:53:28][%emt 00:00:34]} 16.Qf3 
{[%clk 01:11:43][%emt 00:01:26]} 16...Qc7 {[%clk 00:46:46][%emt 00:07:12]} 
17.Bd3 {[%clk 01:11:11][%emt 00:01:02]} 17...Nf6 {[%clk 00:47:01][%emt
00:00:15]} 18.Rhe1 {[%clk 01:04:36][%emt 00:07:05]} 18...O-O {[%clk
00:44:04][%emt 00:03:27]} 19.Kb1 {[%clk 01:04:44][%emt 00:00:23]} 19...Rfe8 
{[%clk 00:31:04][%emt 00:13:30]} 20.a3 {[%clk 00:53:52][%emt 00:11:21]} 
20...Qb8 {[%clk 00:29:49][%emt 00:01:45]} 21.g4 {[%clk 00:43:34][%emt 00:10:48]} 
21...Qa8 {[%clk 00:19:21][%emt 00:10:59]} 22.Qh3 {[%clk 00:35:23][%emt
00:08:40]} 22...e4 {[%clk 00:19:14][%emt 00:00:38]} 23.Bf1 {[%clk 00:35:48][%emt
00:00:04]} 23...Nd5 {[%clk 00:17:16][%emt 00:02:28]} 24.Rxe4 {[%clk
00:31:31][%emt 00:04:47]} 24...Nf6 {[%clk 00:15:42][%emt 00:02:04]} 25.Rxe6 
{[%clk 00:20:47][%emt 00:11:13]} 25...fxe6 {[%clk 00:16:07][%emt 00:00:06]} 
26.g5 {[%clk 00:21:12][%emt 00:00:05]} 26...Ne4 {[%clk 00:16:27][%emt 00:00:10]} 
27.Qxe6+ {[%clk 00:21:28][%emt 00:00:13]} 27...Kh8 {[%clk 00:16:47][%emt
00:00:11]} 28.Bd3 {[%clk 00:21:07][%emt 00:00:51]} 28...Nf2 {[%clk
00:09:33][%emt 00:07:44]} 29.Qe2 {[%clk 00:21:31][%emt 00:00:06]} 29...Nxd3 
{[%clk 00:09:39][%emt 00:00:24]} 30.Qxd3 {[%clk 00:21:58][%emt 00:00:02]} 
30...Bf8 {[%clk 00:09:41][%emt 00:00:29]} 31.Bc3 {[%clk 00:21:16][%emt
00:01:12]} 31...Qe4 {[%clk 00:09:50][%emt 00:00:21]} 32.f5 {[%clk 00:21:24][%emt
00:00:22]} 32...Qxd3 {[%clk 00:09:58][%emt 00:00:22]} 33.Rxd3 {[%clk
00:21:19][%emt 00:00:35]} 33...Kg8 {[%clk 00:09:24][%emt 00:01:04]} 34.Nd4 
{[%clk 00:20:35][%emt 00:01:14]} 34...Rc5 {[%clk 00:03:23][%emt 00:06:31]} 
35.Rf3 {[%clk 00:20:01][%emt 00:01:04]} 35...Rc7 {[%clk 00:03:33][%emt
00:00:21]} 36.h4 {[%clk 00:18:50][%emt 00:01:40]} 36...Rf7 {[%clk 00:02:33][%emt
00:01:30]} 37.h5 {[%clk 00:18:26][%emt 00:00:54]} 37...g6 {[%clk 00:02:50][%emt
00:00:13]} 38.f6 {[%clk 00:07:39][%emt 00:11:17]} 38...gxh5 {[%clk
00:01:57][%emt 00:01:24]} 39.Nf5 {[%clk 00:07:17][%emt 00:00:51]} 39...Re4 
{[%clk 00:01:50][%emt 00:00:37]} 40.Rh3 {[%clk 00:07:28][%emt 00:00:19]} 
40...Rf4 {[%clk 00:01:07][%emt 00:01:13]} 41.Nd4 {[%clk 00:03:55][%emt
00:04:03]} 41...h4 {[%clk 00:45:43][%emt 00:05:54]} 42.Nf3 {[%clk 00:51:53][%emt
00:02:32]} 42...Rg4 {[%clk 00:40:28][%emt 00:05:45]} 43.Rxh4 {[%clk
00:51:10][%emt 00:01:13]} 43...Rxh4 {[%clk 00:40:07][%emt 00:00:51]} 44.Nxh4 
{[%clk 00:51:38][%emt 00:00:02]} 44...Rc7 {[%clk 00:38:30][%emt 00:02:07]} 
45.Bd4 {[%clk 00:51:46][%emt 00:00:22]} 45...Kf7 {[%clk 00:34:40][%emt
00:04:21]} 46.c3 {[%clk 00:51:22][%emt 00:00:53]} 46...Rc8 {[%clk 00:30:48][%emt
00:04:23]} 47.Kc2 {[%clk 00:51:35][%emt 00:00:17]} 47...Re8 {[%clk
00:30:56][%emt 00:00:22]} 48.Kd3 {[%clk 00:52:00][%emt 00:00:05]} 48...d5 
{[%clk 00:27:27][%emt 00:03:59]} 49.Be3 {[%clk 00:50:13][%emt 00:02:16]} 
49...Re4 {[%clk 00:27:08][%emt 00:00:48]} 50.Nf3 {[%clk 00:45:48][%emt
00:04:55]} 50...Kg6 {[%clk 00:23:35][%emt 00:04:04]} 51.a4 {[%clk 00:41:31][%emt
00:04:47]} 51...bxa4 {[%clk 00:11:39][%emt 00:12:26]} 52.c4 {[%clk
00:41:55][%emt 00:00:07]} 52...Rxe3+ {[%clk 00:10:45][%emt 00:01:23]} 53.Kxe3 
{[%clk 00:40:26][%emt 00:01:59]} 53...dxc4 {[%clk 00:11:08][%emt 00:00:07]} 
54.Kd4 {[%clk 00:38:29][%emt 00:02:26]} 54...a3 {[%clk 00:11:01][%emt 00:00:38]} 
55.bxa3 {[%clk 00:38:52][%emt 00:00:07]} 55...Bxa3 {[%clk 00:11:23][%emt
00:00:08]} 56.Kxc4 {[%clk 00:39:12][%emt 00:00:10]} 56...Kf5 {[%clk
00:10:08][%emt 00:01:45]} 57.Kb3 {[%clk 00:37:07][%emt 00:02:35]} 57...Bf8 
{[%clk 00:03:54][%emt 00:06:44]} 58.Ka4 {[%clk 00:37:07][%emt 00:00:30]} 
58...Kf4 {[%clk 00:03:19][%emt 00:01:05]} 59.g6 {[%clk 00:37:10][%emt 00:00:27]} 
59...hxg6 {[%clk 00:03:14][%emt 00:00:35]} 60.Nh4 {[%clk 00:37:35][%emt
00:00:05]} 60...g5 {[%clk 00:03:30][%emt 00:00:15]} 61.Ng6+ {[%clk
00:38:00][%emt 00:00:04]} 61...Kf5 {[%clk 00:03:53] [%emt 00:00:07]} 62.Nxf8 
{[%clk 00:38:24] [%emt 00:00:06]} 62...Kxf6 {[%clk 00:04:17] [%emt 00:00:06]} 1/2-1/2

[Event "FIDE Grand Swiss 2023"]
[Site "Villa Marina, Douglas, Isle of Man"]
[Date "2023.11.04"]
[Round "10.17"]
[White "Yu, Yangyi"]
[Black "Kuybokarov, Temur"]
[Result "1/2-1/2"]
[WhiteElo "2720"]
[BlackElo "2584"]
[EventDate "2023.10.25"]
[ECO "E60"]
[PlyCount "129"]
[BlackFideId "14203049"]
[TimeControl "40/100 + 20/50 + 15 + 30s/move"]
[WhiteFideId "8603820"]

1.d4 {[%clk 01:40:55][%emt 00:00:04]} 1...Nf6 {[%clk 01:40:47][%emt 00:00:13]} 
2.c4 {[%clk 01:41:17][%emt 00:00:08]} 2...g6 {[%clk 01:41:01][%emt 00:00:16]} 
3.Nf3 {[%clk 01:41:38][%emt 00:00:09]} 3...Bg7 {[%clk 01:41:21][%emt 00:00:10]} 
4.e3 {[%clk 01:41:33][%emt 00:00:35]} 4...O-O {[%clk 01:40:42][%emt 00:01:10]} 
5.h3 {[%clk 01:41:47][%emt 00:00:15]} 5...b6 {[%clk 01:31:48][%emt 00:09:24]} 
6.Be2 {[%clk 01:42:03][%emt 00:00:14]} 6...Bb7 {[%clk 01:31:20][%emt 00:00:58]} 
7.O-O {[%clk 01:42:20][%emt 00:00:12]} 7...e6 {[%clk 01:25:30][%emt 00:06:22]} 
8.b4 {[%clk 01:42:14][%emt 00:00:36]} 8...d5 {[%clk 01:21:45][%emt 00:04:15]} 
9.Nbd2 {[%clk 01:41:22][%emt 00:01:21]} 9...Nbd7 {[%clk 01:10:39][%emt
00:11:37]} 10.Bb2 {[%clk 01:41:22][%emt 00:00:30]} 10...c5 {[%clk 01:06:41][%emt
00:04:27]} 11.dxc5 {[%clk 01:40:05][%emt 00:01:48]} 11...bxc5 {[%clk
01:02:56][%emt 00:04:15]} 12.b5 {[%clk 01:36:38][%emt 00:03:57]} 12...a6 {[%clk
00:55:44][%emt 00:07:41]} 13.a4 {[%clk 01:35:19][%emt 00:01:50]} 13...axb5 
{[%clk 00:54:35][%emt 00:01:39]} 14.axb5 {[%clk 01:35:20][%emt 00:00:28]} 
14...Ne8 {[%clk 00:52:00][%emt 00:03:05]} 15.Qc2 {[%clk 01:28:50][%emt
00:07:00]} 15...Nd6 {[%clk 00:49:27][%emt 00:03:03]} 16.Rxa8 {[%clk
01:26:07][%emt 00:03:13]} 16...Bxa8 {[%clk 00:48:49][%emt 00:01:08]} 17.Bxg7 
{[%clk 01:24:03][%emt 00:02:34]} 17...Kxg7 {[%clk 00:48:11][%emt 00:01:09]} 
18.Ra1 {[%clk 01:24:23][%emt 00:00:10]} 18...Bb7 {[%clk 00:39:17][%emt
00:09:23]} 19.cxd5 {[%clk 01:13:02][%emt 00:11:51]} 19...exd5 {[%clk
00:35:19][%emt 00:04:28]} 20.Nb3 {[%clk 01:12:16][%emt 00:01:16]} 20...Qb6 
{[%clk 00:27:32][%emt 00:08:16]} 21.Na5 {[%clk 01:11:10][%emt 00:01:38]} 
21...Ra8 {[%clk 00:20:47][%emt 00:07:14]} 22.Qb2+ {[%clk 01:09:40][%emt
00:02:00]} 22...f6 {[%clk 00:15:44][%emt 00:05:33]} 23.Nxb7 {[%clk
01:07:19][%emt 00:02:52]} 23...Qxb7 {[%clk 00:16:09][%emt 00:00:05]} 24.Ng5 
{[%clk 01:02:44][%emt 00:05:03]} 24...Rxa1+ {[%clk 00:13:57][%emt 00:02:43]} 
25.Qxa1 {[%clk 01:02:35][%emt 00:00:39]} 25...Nf8 {[%clk 00:11:43][%emt
00:02:45]} 26.Qa6 {[%clk 00:51:56][%emt 00:11:09]} 26...Qxa6 {[%clk
00:11:31][%emt 00:00:41]} 27.bxa6 {[%clk 00:52:25][%emt 00:00:02]} 27...Nc8 
{[%clk 00:11:42][%emt 00:00:19]} 28.Nf3 {[%clk 00:52:38][%emt 00:00:17]} 
28...Kf7 {[%clk 00:11:21][%emt 00:00:51]} 29.Nd2 {[%clk 00:51:59][%emt
00:01:09]} 29...Ne6 {[%clk 00:10:14][%emt 00:01:37]} 30.e4 {[%clk 00:49:22][%emt
00:03:07]} 30...Nd4 {[%clk 00:09:45][%emt 00:00:59]} 31.Kf1 {[%clk
00:48:10][%emt 00:01:41]} 31...c4 {[%clk 00:08:14][%emt 00:02:02]} 32.Nb1 
{[%clk 00:39:52][%emt 00:08:48]} 32...dxe4 {[%clk 00:05:40][%emt 00:03:04]} 
33.Bxc4+ {[%clk 00:40:07][%emt 00:00:15]} 33...Ke7 {[%clk 00:05:42][%emt
00:00:28]} 34.Nc3 {[%clk 00:39:51][%emt 00:00:45]} 34...f5 {[%clk 00:06:06][%emt
00:00:06]} 35.Nb5 {[%clk 00:38:00][%emt 00:02:21]} 35...Nxb5 {[%clk
00:05:31][%emt 00:01:05]} 36.Bxb5 {[%clk 00:38:28][%emt 00:00:02]} 36...Kd6 
{[%clk 00:05:10][%emt 00:00:50]} 37.Ke2 {[%clk 00:37:53][%emt 00:01:06]} 
37...f4 {[%clk 00:04:01][%emt 00:01:39]} 38.Kd2 {[%clk 00:36:25][%emt 00:01:58]} 
38...Kc7 {[%clk 00:03:47][%emt 00:00:45]} 39.Bc4 {[%clk 00:28:42][%emt
00:08:13]} 39...Kb6 {[%clk 00:01:42][%emt 00:02:34]} 40.Kc3 {[%clk
00:22:11][%emt 00:07:01]} 40...Nd6 {[%clk 00:00:32][%emt 00:01:40]} 41.Bg8 
{[%clk 00:16:34][%emt 00:06:07]} 41...Nf5 {[%clk 00:40:32][%emt 00:10:31]} 
42.Bxh7 {[%clk 01:03:02][%emt 00:04:02]} 42...e3 {[%clk 00:31:34][%emt
00:09:27]} 43.fxe3 {[%clk 00:56:18][%emt 00:07:14]} 43...Nh4 {[%clk
00:13:22][%emt 00:18:43]} 44.e4 {[%clk 00:45:19][%emt 00:11:29]} 44...Kxa6 
{[%clk 00:13:02][%emt 00:00:50]} 45.Kd4 {[%clk 00:34:02][%emt 00:11:47]} 
45...f3 {[%clk 00:12:46][%emt 00:00:45]} 46.gxf3 {[%clk 00:26:08][%emt
00:08:25]} 46...Nxf3+ {[%clk 00:13:03][%emt 00:00:13]} 47.Ke3 {[%clk
00:18:21][%emt 00:08:17]} 47...Ng5 {[%clk 00:12:30][%emt 00:01:02]} 48.Bxg6 
{[%clk 00:16:33][%emt 00:02:17]} 48...Nxh3 {[%clk 00:12:52][%emt 00:00:09]} 
49.e5 {[%clk 00:16:45][%emt 00:00:19]} 49...Ng5 {[%clk 00:12:47][%emt 00:00:34]} 
50.Bf5 {[%clk 00:13:39][%emt 00:03:36]} 50...Nf7 {[%clk 00:12:12][%emt
00:01:05]} 51.e6 {[%clk 00:12:44][%emt 00:01:25]} 51...Nd6 {[%clk 00:12:29][%emt
00:00:13]} 52.Kf4 {[%clk 00:12:00][%emt 00:01:15]} 52...Nc8 {[%clk
00:12:53][%emt 00:00:06]} 53.Ke5 {[%clk 00:11:12][%emt 00:01:18]} 53...Kb6 
{[%clk 00:13:11][%emt 00:00:11]} 54.Bd3 {[%clk 00:10:50][%emt 00:00:52]} 
54...Kc7 {[%clk 00:13:30][%emt 00:00:11]} 55.Bb5 {[%clk 00:10:50][%emt
00:00:30]} 55...Ne7 {[%clk 00:13:54][%emt 00:00:06]} 56.Be8 {[%clk
00:11:03][%emt 00:00:17]} 56...Kd8 {[%clk 00:14:08][%emt 00:00:16]} 57.Ba4 
{[%clk 00:11:21][%emt 00:00:13]} 57...Ng6+ {[%clk 00:14:11][%emt 00:00:26]} 
58.Kf6 {[%clk 00:11:32][%emt 00:00:20]} 58...Ne7 {[%clk 00:14:37][%emt
00:00:04]} 59.Kf7 {[%clk 00:11:50][%emt 00:00:12]} 59...Nd5 {[%clk
00:14:49][%emt 00:00:16]} 60.Bc6 {[%clk 00:12:11][%emt 00:00:10]} 60...Ne7 
{[%clk 00:15:15][%emt 00:00:04]} 61.Bb7 {[%clk 00:11:44] [%emt 00:00:57]} 
61...Nf5 {[%clk 00:15:39] [%emt 00:00:06]} 62.Kf8 {[%clk 00:10:42][%emt
00:01:33]} 62...Ne7 {[%clk 00:16:01][%emt 00:00:07]} 63.Kf7 {[%clk
00:11:44][%emt 00:00:57]} 63...Nf5 {[%clk 00:15:39][%emt 00:00:06]} 64.Be4 
{[%clk 00:09:54][%emt 00:00:23]} 64...Ne7 {[%clk 00:16:51][%emt 00:00:05]} 
65.Kf8 {[%clk 00:10:06] [%emt 00:00:19]} 1/2-1/2